bitfinex/quotes_BTCUSD_20250114
["timestamp","ask_amount","ask_price","bid_price","bid_amount"]
[1736847976515,0.05046072,96996.0,96995.0,1.52272107]
[1736847976932,0.05131432,96996.0,96995.0,1.52272107]
[1736847977601,0.05131432,96996.0,96995.0,0.01872107]
[1736847977784,0.51304667,96996.0,96995.0,0.01872107]
[1736847978037,0.2325,96984.0,96982.0,0.13444065]
[1736847978248,0.70804792,96983.0,96982.0,0.13444065]
[1736847978471,0.70804792,96983.0,96982.0,0.09569851]
[1736847978730,0.503821,96983.0,96982.0,0.09562384]
[1736847978945,0.403821,96983.0,96982.0,0.09562384]
[1736847979145,0.206236,96976.0,96956.0,0.09562384]
[1736847979463,0.36689241,96976.0,96956.0,0.09562384]
[1736847979692,0.36689241,96976.0,96944.0,0.17921639]
[1736847979895,0.80990073,96976.0,96975.0,5.6e-07]
[1736847980105,0.35,96974.0,96944.0,0.17921639]
[1736847980311,0.45422692,96974.0,96937.0,0.0066]
[1736847980514,0.35422692,96974.0,96945.0,1.5]
[1736847980810,0.55845384,96974.0,96945.0,1.5]
[1736847981014,0.45845384,96974.0,96945.0,1.5]
[1736847981145,0.55845384,96974.0,96945.0,1.5]
[1736847981354,0.25422692,96974.0,96945.0,1.5]
[1736847981555,0.25422692,96974.0,96946.0,0.00103137]
[1736847982517,0.25522692,96974.0,96942.0,0.0066]
[1736847982679,0.25522692,96974.0,96953.0,1.5]
[1736847982885,0.45522692,96974.0,96953.0,1.5]
[1736847983267,0.35522692,96974.0,96953.0,1.5]
[1736847983479,0.45522692,96974.0,96953.0,1.5]
[1736847983697,0.35522692,96974.0,96953.0,1.5]
[1736847984027,0.45945384,96974.0,96953.0,1.5]
[1736847984472,0.55945384,96974.0,96953.0,1.5]
[1736847984909,0.55945384,96974.0,96973.0,0.09569762]
[1736847985134,0.55945384,96974.0,96973.0,0.05744464]
[1736847985366,0.64195384,96974.0,96973.0,6.4e-07]
[1736847985586,0.206285,96953.0,96942.0,0.00664]
[1736847986050,0.206285,96953.0,96943.0,1.5]
[1736847986722,0.206285,96953.0,96952.0,0.00279298]
[1736847987054,0.206285,96953.0,96952.0,0.00328665]
[1736847987538,0.206285,96953.0,96952.0,0.00728665]
[1736847987758,0.43731593,96953.0,96952.0,0.00728665]
[1736847988135,0.70759021,96953.0,96952.0,0.00728665]
[1736847988335,0.70759021,96953.0,96952.0,0.00328665]
[1736847988513,0.70859021,96953.0,96952.0,0.00228665]
[1736847990677,0.70859021,96953.0,96952.0,6.5e-07]
[1736847990678,0.71898909,96953.0,96952.0,6.5e-07]
[1736847990877,0.81898909,96953.0,96952.0,6.5e-07]
[1736847992101,0.81798909,96953.0,96952.0,6.5e-07]
[1736847992300,0.81798909,96953.0,96952.0,0.00100065]
[1736847992301,0.81898909,96953.0,96952.0,0.00100065]
[1736847993107,0.23795816,96953.0,96952.0,0.00100065]
[1736847993309,0.3219108,96953.0,96952.0,0.00100065]
[1736847993512,0.4719108,96953.0,96952.0,0.00100065]
[1736847993761,0.6719108,96953.0,96952.0,6.5e-07]
[1736847994052,0.7473108,96953.0,96952.0,6.5e-07]
[1736847994269,0.7473108,96953.0,96933.0,1.5]
[1736847994270,0.206325,96934.0,96933.0,1.5]
[1736847994685,0.46055192,96934.0,96933.0,1.5]
[1736847994907,0.25422692,96934.0,96907.0,0.0795]
[1736847995108,0.206376,96911.0,96910.0,0.00664]
[1736847995619,0.206376,96911.0,96910.0,1.50664]
[1736847995818,0.206376,96911.0,96910.0,1.5]
[1736847996525,0.20649808,96911.0,96910.0,1.5]
[1736847997032,0.20649808,96911.0,96910.0,1.501]
[1736847997711,0.20749808,96911.0,96910.0,1.509]
[1736847997886,0.20649808,96911.0,96910.0,1.501]
[1736847998293,0.20649808,96911.0,96910.0,1.504]
[1736847998496,0.20649808,96911.0,96910.0,1.506]
[1736847998851,0.24778489,96911.0,96910.0,1.506]
[1736847999060,0.50201181,96911.0,96910.0,0.006]
[1736847999643,0.50201181,96911.0,96910.0,0.004]
[1736848000149,0.50301181,96911.0,96910.0,0.004]
[1736848000394,0.60301181,96911.0,96910.0,0.004]
[1736848000568,0.356391,96903.0,96885.0,1.5]
[1736848000771,0.4226689,96903.0,96885.0,1.5]
[1736848001071,0.356391,96903.0,96885.0,1.5]
[1736848001926,0.356391,96903.0,96902.0,0.00279382]
[1736848002172,0.206391,96903.0,96902.0,0.00279382]
[1736848002380,0.00112208,96911.0,96902.0,0.00279382]
[1736848002599,0.00112208,96911.0,96903.0,0.18462692]
[1736848002894,0.00012208,96911.0,96910.0,1.5]
[1736848003525,0.00012208,96911.0,96910.0,1.62722692]
[1736848003955,0.00112208,96911.0,96910.0,1.62722692]
[1736848004155,0.00012208,96911.0,96910.0,1.62722692]
[1736848004559,0.00012208,96911.0,96910.0,1.63322692]
[1736848004740,0.00012208,96911.0,96910.0,1.62722692]
[1736848005129,0.00012208,96911.0,96910.0,1.63422692]
[1736848005390,0.00012208,96911.0,96910.0,1.65255342]
[1736848005533,0.00012208,96911.0,96910.0,1.65555342]
[1736848005733,0.00012208,96911.0,96910.0,1.64891342]
[1736848006116,0.00012208,96911.0,96910.0,1.65255342]
[1736848006321,0.00012208,96911.0,96910.0,1.64891342]
[1736848006533,0.00012208,96911.0,96910.0,1.5283265]
[1736848006917,0.00012208,96911.0,96910.0,1.5353265]
[1736848007214,0.00012208,96911.0,96910.0,1.5283265]
[1736848007416,0.00012208,96911.0,96910.0,1.5353265]
[1736848007617,0.00012208,96911.0,96910.0,1.5283265]
[1736848008017,0.00012208,96911.0,96910.0,1.5343265]
[1736848008422,0.00012208,96911.0,96910.0,1.5276865]
[1736848008631,0.00012208,96911.0,96910.0,1.5313265]
[1736848008799,0.00012208,96911.0,96910.0,1.5343265]
[1736848009005,0.00012208,96911.0,96910.0,1.64286692]
[1736848010000,0.00012208,96911.0,96910.0,1.63986692]
[1736848011238,0.00012208,96911.0,96910.0,1.64186692]
[1736848011838,0.00012208,96911.0,96910.0,1.66061665]
[1736848012480,0.00012208,96911.0,96910.0,1.52674973]
[1736848012633,0.00012208,96911.0,96910.0,1.53330973]
[1736848013960,0.00012208,96911.0,96910.0,1.53510271]
[1736848014610,0.00012208,96911.0,96910.0,1.79865469]
[1736848014817,0.00012208,96911.0,96910.0,2.27157469]
[1736848015010,0.0008538,96952.0,96931.0,0.206331]
[1736848015192,0.0008538,96952.0,96932.0,0.10422692]
[1736848015193,0.206289,96951.0,96932.0,0.10422692]
[1736848015419,0.206289,96951.0,96933.0,0.023]
[1736848015618,0.206289,96951.0,96935.0,0.023]
[1736848015823,0.00097601,96952.0,96935.0,0.023]
[1736848015824,0.206291,96950.0,96937.0,1.5]
[1736848016181,0.00097601,96952.0,96938.0,0.06983148]
[1736848016613,0.00097601,96952.0,96943.0,0.206306]
[1736848016780,0.00097601,96952.0,96951.0,1.5]
[1736848017933,0.00097601,96952.0,96951.0,1.51874973]
[1736848019268,0.00097601,96952.0,96951.0,1.64597665]
[1736848019478,0.00097601,96952.0,96951.0,1.64897665]
[1736848019691,0.00097601,96952.0,96951.0,1.64997665]
[1736848019894,0.00097601,96952.0,96951.0,1.64697665]
[1736848020131,0.00097601,96952.0,96951.0,1.64997665]
[1736848020607,0.00097601,96952.0,96951.0,1.64697665]
[1736848020823,0.00097601,96952.0,96951.0,1.62397665]
[1736848021037,0.00097601,96952.0,96951.0,0.02774973]
[1736848021038,0.20726301,96952.0,96951.0,0.02774973]
[1736848021246,0.04505975,96986.0,96957.0,0.1]
[1736848021473,0.04505975,96986.0,96983.0,1.5]
[1736848021689,0.04505975,96986.0,96984.0,0.00656]
[1736848021690,0.04555326,96986.0,96984.0,0.00656]
[1736848021910,0.04555326,96986.0,96985.0,0.12722692]
[1736848022342,0.04555326,96986.0,96985.0,1.62722692]
[1736848023214,0.04555326,96986.0,96985.0,1.62922692]
[1736848023803,0.00049351,96986.0,96985.0,1.62922692]
[1736848024765,0.00049351,96986.0,96985.0,1.63322692]
[1736848024895,0.00049351,96986.0,96985.0,1.63122692]
[1736848025095,0.00049351,96986.0,96985.0,1.63322692]
[1736848025506,0.00049351,96986.0,96985.0,1.67872692]
[1736848025705,0.00049351,96986.0,96985.0,1.95903992]
[1736848025905,0.00049351,96986.0,96985.0,1.89589992]
[1736848026327,0.00134731,96986.0,96985.0,1.68517942]
[1736848026493,0.00134731,96986.0,96985.0,1.99070957]
[1736848026695,0.00134731,96986.0,96985.0,1.99570957]
[1736848026899,0.00134731,96986.0,96985.0,1.99070957]
[1736848027319,0.00134731,96986.0,96985.0,1.99970957]
[1736848027525,0.00134731,96986.0,96985.0,1.71076057]
[1736848027742,0.00134731,96986.0,96985.0,1.71276057]
[1736848027942,0.00134731,96986.0,96985.0,2.00898542]
[1736848028162,0.00134731,96986.0,96985.0,2.10898542]
[1736848028363,0.00134731,96986.0,96985.0,2.10698542]
[1736848028563,0.00134731,96986.0,96985.0,2.11298542]
[1736848028770,0.00134731,96986.0,96985.0,1.96871442]
[1736848029019,0.00134731,96986.0,96985.0,2.05629442]
[1736848030201,0.00134731,96986.0,96985.0,1.95629442]
[1736848030395,0.00134731,96986.0,96985.0,2.15001342]
[1736848030602,0.00134731,96986.0,96985.0,1.87327946]
[1736848030958,0.00134731,96986.0,96985.0,1.97327946]
[1736848031573,0.00134731,96986.0,96985.0,1.95473942]
[1736848031986,0.00134731,96986.0,96985.0,1.85473942]
[1736848032370,0.00134731,96986.0,96985.0,1.95473942]
[1736848032624,0.00134731,96986.0,96985.0,1.94817942]
[1736848032849,0.00134731,96986.0,96985.0,1.85473942]
[1736848033096,0.00134731,96986.0,96985.0,2.97197742]
[1736848033324,0.00134731,96986.0,96985.0,2.77699542]
[1736848034404,0.00134731,96986.0,96985.0,1.85473942]
[1736848034833,0.00134731,96986.0,96985.0,1.77578692]
[1736848035041,0.00134731,96986.0,96985.0,1.86922692]
[1736848035245,0.00134731,96986.0,96985.0,1.87578692]
[1736848035487,0.00134731,96986.0,96985.0,1.89878692]
[1736848035760,0.00134731,96986.0,96985.0,2.41670592]
[1736848035967,0.00134731,96986.0,96985.0,2.07394292]
[1736848036175,0.00134731,96986.0,96985.0,1.84008092]
[1736848036382,0.00134731,96986.0,96985.0,2.14718792]
[1736848036761,0.00134731,96986.0,96985.0,1.84008092]
[1736848036897,0.00134731,96986.0,96985.0,1.94008092]
[1736848037117,0.00134731,96986.0,96985.0,3.26379392]
[1736848037319,0.00134731,96986.0,96985.0,3.06650092]
[1736848038257,0.00134731,96986.0,96985.0,2.44888992]
[1736848038461,0.00134731,96986.0,96985.0,1.84008092]
[1736848039519,4.24979283,97000.0,96999.0,0.8954]
[1736848039520,3.76154124,97000.0,96999.0,0.8954]
[1736848039726,0.01325887,97046.0,97045.0,0.206089]
[1736848039943,0.0008534,97051.0,97046.0,0.25]
[1736848040160,0.0008534,97051.0,97046.0,1.88129192]
[1736848040411,0.0008534,97051.0,97046.0,2.06847992]
[1736848040609,0.01719142,97057.0,97056.0,0.35]
[1736848040814,0.0008541,97083.0,97067.0,0.1]
[1736848041039,0.0008541,97083.0,97067.0,2.69205968]
[1736848041242,5.3e-07,97068.0,97067.0,6.26270492]
[1736848041447,5.3e-07,97068.0,97067.0,2.18982992]
[1736848042316,0.0008541,97083.0,97080.0,0.1]
[1736848042527,1e-07,97083.0,97082.0,0.35]
[1736848042735,1e-07,97083.0,97082.0,0.47722692]
[1736848042955,1e-07,97083.0,97082.0,1.97722692]
[1736848044258,1e-07,97083.0,97082.0,1.98781576]
[1736848044458,5.069e-05,97087.0,97086.0,0.556002]
[1736848044569,5.069e-05,97087.0,97086.0,0.68322892]
[1736848044991,5.069e-05,97087.0,97086.0,2.49936392]
[1736848045201,0.02095919,97100.0,97099.0,0.455975]
[1736848045414,0.02145576,97100.0,97099.0,0.58320192]
[1736848045810,0.02145576,97100.0,97099.0,1.14058492]
[1736848046152,0.02145576,97100.0,97099.0,2.64058492]
[1736848046682,0.02145576,97100.0,97099.0,2.73859022]
[1736848047074,0.02145576,97100.0,97099.0,2.74759022]
[1736848047300,0.02145576,97100.0,97099.0,0.21123222]
[1736848047509,0.02145576,97100.0,97099.0,0.31123222]
[1736848047682,0.02145576,97100.0,97099.0,0.33423222]
[1736848048270,0.02145576,97100.0,97099.0,0.34223222]
[1736848048693,0.02145576,97100.0,97099.0,1.83423222]
[1736848048974,0.02145576,97100.0,97099.0,0.21123222]
[1736848049202,0.02145576,97100.0,97099.0,0.20923222]
[1736848049634,0.02230996,97100.0,97099.0,0.21823222]
[1736848049807,0.02230996,97100.0,97099.0,0.20923222]
[1736848050191,0.02230996,97100.0,97099.0,0.21823222]
[1736848050631,0.02230996,97100.0,97099.0,0.24123222]
[1736848050879,0.02230996,97100.0,97099.0,0.20223222]
[1736848051317,0.02330996,97100.0,97099.0,0.20923222]
[1736848051752,0.02230996,97100.0,97099.0,0.20223222]
[1736848051956,0.02330996,97100.0,97099.0,0.53820722]
[1736848052199,0.02330996,97100.0,97099.0,0.43820722]
[1736848052410,0.02330996,97100.0,97099.0,0.54720722]
[1736848052617,0.02330996,97100.0,97099.0,0.20923222]
[1736848052912,0.02330996,97100.0,97099.0,0.21823222]
[1736848053322,0.08129268,97105.0,97099.0,0.20923222]
[1736848053520,0.08144156,97105.0,97100.0,0.10422692]
[1736848054237,0.08144156,97105.0,97104.0,1.5]
[1736848054465,0.08144156,97105.0,97104.0,1.62722692]
[1736848054972,0.08144156,97105.0,97104.0,1.60422692]
[1736848056314,0.08144156,97105.0,97104.0,1.61322692]
[1736848057107,0.08144156,97105.0,97104.0,1.61822692]
[1736848057817,0.08144156,97105.0,97104.0,1.514]
[1736848057818,0.09144156,97105.0,97104.0,1.514]
[1736848057950,0.22758156,97105.0,97104.0,0.009]
[1736848058366,0.411928,97104.0,97099.0,0.0980053]
[1736848059138,0.42208207,97104.0,97099.0,0.0980053]
[1736848059367,0.52208207,97104.0,97099.0,0.0980053]
[1736848059578,0.206019,97078.0,97077.0,1.5]
[1736848059781,0.212659,97078.0,97077.0,1.60422692]
[1736848060393,0.212659,97078.0,97077.0,1.5]
[1736848060593,0.206019,97078.0,97077.0,1.5]
[1736848060831,0.342159,97078.0,97077.0,1.5]
[1736848061665,0.13614,97078.0,97045.0,0.206089]
[1736848061880,0.206055,97062.0,97046.0,0.10525707]
[1736848062120,0.206055,97062.0,97047.0,0.206085]
[1736848062359,0.206055,97062.0,97061.0,1.5]
[1736848063044,0.206055,97062.0,97061.0,1.50049657]
[1736848063260,0.24827945,97062.0,97061.0,1.50049657]
[1736848063485,0.33661945,97062.0,97061.0,0.00049657]
[1736848063940,0.206083,97048.0,97047.0,0.003]
[1736848064162,0.206083,97048.0,97047.0,0.00314816]
[1736848064599,0.212723,97048.0,97047.0,0.00014816]
[1736848064807,0.206083,97048.0,97047.0,0.00014816]
[1736848065019,0.294423,97048.0,97047.0,0.00014816]
[1736848065231,0.294423,97048.0,97047.0,0.00114816]
[1736848065442,0.206117,97032.0,97031.0,1.5]
[1736848066315,0.045,97032.0,97005.0,0.13474905]
[1736848066551,0.206168,97008.0,97006.0,0.10422692]
[1736848066747,0.206168,97008.0,97007.0,1.5]
[1736848066951,0.206168,97008.0,97007.0,1.60422692]
[1736848067402,0.203168,97008.0,97007.0,1.60422692]
[1736848068048,0.20331678,97008.0,97007.0,1.60422692]
[1736848068650,0.00014878,97008.0,97007.0,1.60822692]
[1736848069086,0.00114878,97008.0,97007.0,1.75003992]
[1736848069289,0.00014878,97008.0,97007.0,1.63122692]
[1736848069509,0.00014878,97008.0,97007.0,1.63822692]
[1736848069706,0.00014878,97008.0,97007.0,1.61522692]
[1736848069707,0.00114878,97008.0,97007.0,1.61522692]
[1736848069950,0.00014878,97008.0,97007.0,1.60822692]
[1736848070492,0.00014878,97008.0,97007.0,1.60422692]
[1736848071015,0.00014878,97008.0,97007.0,1.60722692]
[1736848071464,0.00014878,97008.0,97007.0,1.61222692]
[1736848071640,0.00014878,97008.0,97007.0,1.61522692]
[1736848071838,0.00014878,97008.0,97007.0,1.60722692]
[1736848072240,0.00014878,97008.0,97007.0,1.61522692]
[1736848073068,0.00014878,97008.0,97007.0,1.88822692]
[1736848073296,0.00014878,97008.0,97007.0,2.04261492]
[1736848073493,0.00014878,97008.0,97007.0,1.88902492]
[1736848073740,0.00014878,97008.0,97007.0,1.76522692]
[1736848074000,0.00014878,97008.0,97007.0,1.94144331]
[1736848074206,0.00014878,97008.0,97007.0,1.79444331]
[1736848074551,0.00014878,97008.0,97007.0,1.60722692]
[1736848074778,0.00014878,97008.0,97007.0,1.60422692]
[1736848074968,0.00014878,97008.0,97007.0,1.61622692]
[1736848075172,0.00014878,97008.0,97007.0,1.88222692]
[1736848075705,0.00014878,97008.0,97007.0,2.51472392]
[1736848075938,0.0008537,97032.0,97030.0,0.206119]
[1736848076167,0.0008537,97032.0,97031.0,0.10525731]
[1736848076617,0.0008537,97032.0,97031.0,1.60525731]
[1736848076866,0.0008537,97032.0,97031.0,1.60422692]
[1736848077088,0.0008537,97032.0,97031.0,1.62722692]
[1736848077821,0.0008537,97032.0,97031.0,1.62922692]
[1736848078200,0.0008537,97032.0,97031.0,1.62722692]
[1736848078412,0.0008537,97032.0,97031.0,1.63322692]
[1736848078644,0.0008537,97032.0,97031.0,1.63622692]
[1736848079099,0.0008537,97032.0,97031.0,1.61322692]
[1736848079307,0.0008537,97032.0,97031.0,0.10722692]
[1736848079691,0.0008537,97032.0,97031.0,0.11622692]
[1736848080134,0.0008537,97032.0,97031.0,0.009]
[1736848080380,0.0824537,97032.0,97031.0,0.009]
[1736848080596,0.0824537,97032.0,97031.0,1.509]
[1736848080814,0.0008537,97032.0,97031.0,1.64022692]
[1736848081266,0.0008537,97032.0,97031.0,1.62722692]
[1736848081562,0.0008537,97032.0,97031.0,1.78322692]
[1736848081786,0.0008537,97032.0,97031.0,1.78622692]
[1736848082022,0.0008537,97032.0,97031.0,1.78022692]
[1736848082259,0.0008537,97032.0,97031.0,1.61622692]
[1736848082531,0.0008537,97032.0,97031.0,1.60722692]
[1736848082901,0.0008537,97032.0,97031.0,1.61322692]
[1736848083304,0.0008537,97032.0,97031.0,1.61822692]
[1736848083688,0.0008537,97032.0,97031.0,1.61322692]
[1736848084111,0.0008537,97032.0,97031.0,1.60722692]
[1736848084512,0.0008537,97032.0,97031.0,1.61622692]
[1736848084736,0.0008537,97032.0,97031.0,1.60722692]
[1736848085090,0.0008537,97032.0,97031.0,1.61522692]
[1736848086160,0.0008537,97032.0,97031.0,1.511]
[1736848086378,0.0008537,97032.0,97031.0,1.61522692]
[1736848086603,0.0008537,97032.0,97031.0,1.78822692]
[1736848086818,0.0008537,97032.0,97031.0,1.76522692]
[1736848087246,0.0008537,97032.0,97031.0,1.78822692]
[1736848087453,0.0008537,97032.0,97031.0,1.87722692]
[1736848087660,0.0008537,97032.0,97031.0,2.63364492]
[1736848087864,0.0008537,97032.0,97031.0,2.64164492]
[1736848088284,0.0008537,97032.0,97031.0,2.63764492]
[1736848088521,0.0008537,97032.0,97031.0,2.64664492]
[1736848088905,0.0008537,97032.0,97031.0,2.8601387]
[1736848089393,0.0008537,97032.0,97031.0,2.4078007]
[1736848089598,0.0008537,97032.0,97031.0,2.19576324]
[1736848089807,0.0008537,97032.0,97031.0,2.20476324]
[1736848090606,0.0008537,97032.0,97031.0,2.11291624]
[1736848090817,0.0008537,97032.0,97031.0,2.03674224]
[1736848091014,0.0008537,97032.0,97031.0,1.90568324]
[1736848091394,0.0008537,97032.0,97031.0,2.16438524]
[1736848091627,0.0008537,97032.0,97031.0,2.13670824]
[1736848092097,0.0008537,97032.0,97031.0,2.33666404]
[1736848092234,0.0008537,97032.0,97031.0,2.26826404]
[1736848093064,0.0008537,97032.0,97031.0,2.07147624]
[1736848093824,0.0008537,97032.0,97031.0,2.06247624]
[1736848094024,0.0008537,97032.0,97031.0,2.05347624]
[1736848094340,0.0008537,97032.0,97031.0,2.09573624]
[1736848095162,0.0008537,97032.0,97031.0,2.27377504]
[1736848095479,0.0008537,97032.0,97031.0,2.27413804]
[1736848095688,0.00708,97060.0,97036.0,0.15]
[1736848095894,0.00708,97060.0,97035.0,0.206111]
[1736848095895,0.00722903,97060.0,97044.0,0.15]
[1736848096133,0.00722903,97060.0,97045.0,0.10422692]
[1736848096347,0.00014903,97060.0,97045.0,0.10422692]
[1736848096551,0.00014903,97060.0,97046.0,0.206087]
[1736848096789,0.00014903,97060.0,97056.0,0.206065]
[1736848096965,0.00014903,97060.0,97057.0,0.10525704]
[1736848097170,0.00014903,97060.0,97059.0,1.5]
[1736848097379,0.00014903,97060.0,97059.0,1.60422692]
[1736848099862,0.00014903,97060.0,97059.0,1.60822692]
[1736848100333,0.00014903,97060.0,97059.0,1.61722692]
[1736848101187,0.00014903,97060.0,97059.0,1.60822692]
[1736848101420,0.00014903,97060.0,97059.0,1.61222692]
[1736848102108,0.00014903,97060.0,97059.0,1.60822692]
[1736848102507,0.00014903,97060.0,97059.0,1.61012692]
[1736848103254,0.00014903,97060.0,97059.0,1.60812692]
[1736848103457,0.00014903,97060.0,97059.0,1.61112692]
[1736848103634,0.00014903,97060.0,97059.0,1.60712692]
[1736848103893,0.00014903,97060.0,97059.0,1.60912692]
[1736848104098,0.00014903,97060.0,97059.0,1.60412692]
[1736848104538,0.00014903,97060.0,97059.0,1.60812692]
[1736848105368,0.08194903,97060.0,97059.0,1.5039]
[1736848105568,0.08194903,97060.0,97059.0,0.004]
[1736848105569,0.12754903,97060.0,97059.0,0.004]
[1736848105745,0.15938881,97060.0,97059.0,0.004]
[1736848105987,0.15938881,97060.0,97059.0,0.006]
[1736848106400,0.15,97057.0,97032.0,0.17844472]
[1736848106608,0.287915,97033.0,97032.0,0.17844472]
[1736848106815,0.333515,97033.0,97032.0,0.17844472]
[1736848107021,0.333515,97033.0,97032.0,1.5]
[1736848108194,0.333515,97033.0,97032.0,1.501]
[1736848108663,0.333515,97033.0,97032.0,1.5]
[1736848108886,0.340595,97033.0,97032.0,1.501]
[1736848109267,0.340595,97033.0,97032.0,0.002]
[1736848109435,0.54482192,97033.0,97032.0,0.002]
[1736848110014,0.44482192,97033.0,97032.0,0.002]
[1736848110234,0.340595,97033.0,97032.0,0.001]
[1736848110436,0.206152,97016.0,97013.0,1.5]
[1736848111024,0.412304,97016.0,97013.0,1.5]
[1736848112013,0.206155,97014.0,97013.0,1.5]
[1736848112453,0.213235,97014.0,97013.0,1.5]
[1736848114483,0.214235,97014.0,97013.0,1.5]
[1736848114893,0.00808,97014.0,97013.0,1.5]
[1736848115170,0.214235,97014.0,97013.0,1.5]
[1736848118007,0.214235,97014.0,97008.0,0.00179277]
[1736848118219,0.687366,97009.0,97008.0,0.00179277]
[1736848118419,0.638072,97006.0,97005.0,0.00179277]
[1736848118649,0.288106,96990.0,96989.0,0.00179109]
[1736848118953,0.687406,96990.0,96989.0,0.00193987]
[1736848119154,0.494486,96990.0,96989.0,0.00193987]
[1736848119350,0.337406,96990.0,96989.0,0.00193987]
[1736848119551,0.344486,96990.0,96989.0,0.00193987]
[1736848120000,0.206189,96998.0,96989.0,0.10616679]
[1736848120206,0.00708,96997.0,96989.0,0.10616679]
[1736848120457,0.00708,96997.0,96990.0,0.10422692]
[1736848120766,0.19367105,97020.0,96990.0,0.10422692]
[1736848120767,0.00708,97004.0,96996.0,1.5]
[1736848120968,0.00708,97006.0,96997.0,0.12722692]
[1736848121512,0.00708,97006.0,97005.0,1.5]
[1736848121708,0.00708,97006.0,97005.0,1.60422692]
[1736848122005,0.213252,97006.0,97005.0,1.5]
[1736848122382,0.213252,97006.0,96989.0,0.00193987]
[1736848122383,0.00708,97006.0,96989.0,0.00193987]
[1736848122621,0.0819,96990.0,96989.0,0.00193987]
[1736848123244,0.08898,96990.0,96989.0,0.00193987]
[1736848123465,0.1540483,96990.0,96989.0,0.00193987]
[1736848123683,0.4040483,96990.0,96989.0,0.00193987]
[1736848123867,0.08898,96990.0,96989.0,0.00193987]
[1736848124414,0.09098,96990.0,96989.0,0.00193987]
[1736848125159,0.08898,96990.0,96989.0,0.00193987]
[1736848125564,0.09098,96990.0,96989.0,0.00193987]
[1736848126288,0.002,96990.0,96989.0,0.00193987]
[1736848126520,0.002,96990.0,96989.0,0.10616679]
[1736848126903,0.00708,97003.0,96989.0,1.60616679]
[1736848127065,0.00708,97003.0,96991.0,0.023]
[1736848127263,0.00708,97003.0,96995.0,0.023]
[1736848127545,0.00708,97003.0,96994.0,0.206198]
[1736848127546,0.206129,97027.0,97000.0,0.023]
[1736848127724,0.00708,97026.0,97002.0,0.229181]
[1736848127880,0.00708,97025.0,97005.0,0.206174]
[1736848128088,0.00708,97024.0,97007.0,0.023]
[1736848128426,0.00708,97024.0,97014.0,0.023]
[1736848128674,0.00708,97024.0,97016.0,0.023]
[1736848128856,0.00708,97024.0,97017.0,0.10422692]
[1736848129342,0.00708,97026.0,97017.0,0.10422692]
[1736848129582,0.20612,97031.0,97017.0,0.10422692]
[1736848129843,0.00708,97026.0,97017.0,0.10422692]
[1736848130192,0.00708,97026.0,97017.0,0.10622692]
[1736848130428,0.00708,97029.0,97018.0,0.00103057]
[1736848130658,0.00708,97029.0,97020.0,0.023]
[1736848130893,0.00708,97029.0,97022.0,0.023]
[1736848131146,0.00708,97029.0,97023.0,0.10422692]
[1736848132229,0.15,97048.0,97023.0,0.10422692]
[1736848132230,0.00708,97038.0,97026.0,0.023]
[1736848132440,0.00708,97038.0,97028.0,0.023]
[1736848132657,0.00708,97038.0,97030.0,0.023]
[1736848133069,0.00708,97038.0,97032.0,0.023]
[1736848133260,0.206085,97047.0,97033.0,0.10422692]
[1736848133505,0.00708,97039.0,97033.0,0.10422692]
[1736848134645,0.206085,97047.0,97035.0,0.10422692]
[1736848134646,0.002,97047.0,97035.0,0.10422692]
[1736848134869,0.000149,97052.0,97037.0,0.023]
[1736848135168,0.206086,97047.0,97038.0,0.10422692]
[1736848135405,0.000149,97052.0,97039.0,0.1245]
[1736848135642,0.098992,97118.0,97086.0,0.173]
[1736848135908,0.098992,97118.0,97099.0,0.023]
[1736848136129,0.00134978,97104.0,97100.0,0.10422692]
[1736848136349,0.00134978,97104.0,97101.0,1.5]
[1736848137542,0.00134978,97104.0,97099.0,0.003]
[1736848137543,0.00134978,97104.0,97103.0,0.10422692]
[1736848138036,0.00134978,97104.0,97103.0,1.60422692]
[1736848138269,0.00134978,97104.0,97103.0,1.62722692]
[1736848138735,0.00134978,97104.0,97103.0,1.63222692]
[1736848140091,0.00134978,97104.0,97103.0,1.63522692]
[1736848141388,0.00134978,97104.0,97103.0,1.61222692]
[1736848144507,0.00134978,97104.0,97103.0,1.63522692]
[1736848144857,0.00134978,97104.0,97103.0,1.78522692]
[1736848145263,0.00134978,97104.0,97103.0,1.75630309]
[1736848145472,0.00134978,97104.0,97103.0,1.75330309]
[1736848145674,0.00134978,97104.0,97103.0,1.60330309]
[1736848145852,0.00134978,97104.0,97103.0,1.60630309]
[1736848146281,0.00134978,97104.0,97103.0,1.60330309]
[1736848146470,0.00134978,97104.0,97103.0,1.59830309]
[1736848146660,0.00134978,97104.0,97103.0,1.60430309]
[1736848146880,0.00134978,97104.0,97103.0,1.60930309]
[1736848147090,0.00134978,97104.0,97103.0,1.506]
[1736848147461,0.00134978,97104.0,97103.0,1.514]
[1736848147690,0.00134978,97104.0,97103.0,1.61822692]
[1736848148084,0.02147467,97104.0,97103.0,1.508]
[1736848148421,0.02147467,97104.0,97103.0,1.61622692]
[1736848148549,0.00134978,97104.0,97103.0,1.61622692]
[1736848148750,0.00134978,97104.0,97103.0,1.60422692]
[1736848149394,0.00134978,97104.0,97103.0,1.60722692]
[1736848149803,0.00134978,97104.0,97103.0,1.60422692]
[1736848150185,0.00134978,97104.0,97103.0,1.505]
[1736848150433,0.00834978,97104.0,97103.0,1.505]
[1736848151030,0.00834978,97104.0,97103.0,1.5]
[1736848151435,0.00134978,97104.0,97103.0,1.505]
[1736848151631,0.00834978,97104.0,97103.0,1.505]
[1736848151994,0.00834978,97104.0,97103.0,1.503]
[1736848152194,0.00834978,97104.0,97103.0,1.508]
[1736848152814,0.00834978,97104.0,97103.0,1.505]
[1736848152990,0.00761204,97104.0,97103.0,1.508]
[1736848153286,0.00061204,97104.0,97103.0,1.61222692]
[1736848153505,0.00093764,97105.0,97104.0,0.478964]
[1736848153722,0.0144446,97142.0,97141.0,0.205886]
[1736848153927,0.00074061,97174.0,97155.0,0.478856]
[1736848154152,1.6e-07,97156.0,97155.0,2.12225825]
[1736848154371,4.953e-05,97189.0,97188.0,0.205786]
[1736848154579,0.00024721,97222.0,97193.0,0.1]
[1736848154786,0.00024721,97222.0,97221.0,0.30994292]
[1736848154994,0.00024721,97222.0,97221.0,0.10422692]
[1736848155429,0.205731,97214.0,97201.0,0.17844472]
[1736848155630,0.0001,97247.0,97222.0,0.205712]
[1736848155835,0.00073959,97242.0,97225.0,0.25422692]
[1736848156041,0.00073959,97242.0,97225.0,0.53401492]
[1736848156291,0.00022904,97226.0,97225.0,0.53401492]